[Event "SVK Amateur-ch 2020"]
[Site "Topolcany"]
[Date "2020.07.10"]
[Round "2.14"]
[White "Chlpek, Daniel"]
[Black "Gromovs, Sergejs"]
[Result "0-1"]
[ECO "A11"]
[WhiteElo "1969"]
[BlackElo "2131"]
[Annotator "ChessBase"]
[PlyCount "92"]
[EventDate "2020.07.10"]
[EventType "swiss"]
[EventCountry "SVK"]
[SourceTitle "playchess.com"]
[Source "ChessBase"]
[SourceQuality "1"]
[TimeControl "3600+30"]

1. c4 {[%emt 0:00:00]} c6 {[%emt 0:00:00]} 2. d4 {[%emt 0:00:00]} d6 {[%emt 0:00:00]} 3. e4 {[%emt 0:00:17]} Nd7 {[%emt 0:00:00]} 4. Nc3 {[%emt 0:00:06]} h6 {[%emt 0:00:00]} 5. Be3 {[%emt 0:00:09]} g5 {[%emt 0:00:03]} 6. g3 {[%emt 0:00:55]} Bg7 {[%emt 0:00:11]} 7. Nge2 {[%emt 0:00:34]} Nf8 {[%emt 0:00:15]} 8. Bg2 {[%emt 0:00:11]} Qa5 {[%emt 0:00:16]} 9. O-O {[%emt 0:00:15]} h5 {[%emt 0:00:53]} 10. d5 {[%emt 0:05:04]} cxd5 {[%emt 0:03:36]} 11. Nxd5 {[%emt 0:01:24]} Ne6 {[%emt 0:01:13]} 12. Nd4 {[%emt 0:02:14]} h4 {[%emt 0:00:47]} 13. b4 {[%emt 0:02:10]} Qd8 {[%emt 0:00:14]} 14. b5 {[%emt 0:01:20]} Nxd4 {[%emt 0:11:29]} 15. Bxd4 {[%emt 0:00:05]} Bxd4 {[%emt 0:01:21]} 16. Qxd4 {[%emt 0:00:04]} e5 {[%emt 0:00:11]} 17. Qd2 {[%emt 0:00:46]} Be6 {[%emt 0:00:28]} 18. Rfd1 {[%emt 0:03:46]} hxg3 {[%emt 0:00:30]} 19. fxg3 {[%emt 0:05:31]} f6 {[%emt 0:01:06]} 20. Qf2 {[%emt 0:03:52]} Kf7 {[%emt 0:02:14]} 21. Rac1 {[%emt 0:03:31]} b6 {[%emt 0:02:02]} 22. a4 {[%emt 0:01:52]} Nh6 {[%emt 0:01:32]} 23. Rf1 {[%emt 0:05:44]} Ng4 {[%emt 0:05:04]} 24. Qf3 {[%emt 0:00:35]} Rxh2 {[%emt 0:02:42]} 25. Nxf6 {[%emt 0:03:16]} Rxg2+ {[%emt 0:00:46]} 26. Kxg2 {[%emt 0:00:06]} Nxf6 {[%emt 0:00:15]} 27. Qh5+ {[%emt 0:00:09]} Ke7 {[%emt 0:00:46]} 28. Qxg5 {[%emt 0:00:18]} Qh8 {[%emt 0:01:47]} 29. Rh1 {[%emt 0:02:14]} Rg8 {[%emt 0:02:45]} 30. Rxh8 {[%emt 0:01:07]} Rxg5 {[%emt 0:00:53]} 31. Ra8 {[%emt 0:01:22]} Nxe4 {[%emt 0:00:56]} 32. Rxa7+ {[%emt 0:00:09]} Bd7 {[%emt 0:00:53]} 33. Kf3 {[%emt 0:02:45]} Nc5 {[%emt 0:01:04]} 34. Rh1 {[%emt 0:03:59]} e4+ {[%emt 0:00:14]} 35. Kg2 {[%emt 0:01:39]} Kf6 {[%emt 0:00:06]} 36. Rd1 {[%emt 0:04:19]} Ke6 {[%emt 0:00:06]} 37. a5 {[%emt 0:01:42]} bxa5 {[%emt 0:00:42]} 38. Rxa5 {[%emt 0:00:27]} Rg8 {[%emt 0:02:09]} 39. Ra2 {[%emt 0:02:15]} Nd3 {[%emt 0:03:39]} 40. Ra6 {[%emt 0:03:00]} Rc8 {[%emt 0:01:16]} 41. b6 {[%emt 0:02:33]} Rxc4 {[%emt 0:03:38]} 42. b7 {[%emt 0:02:35]} Rc2+ {[%emt 0:01:02]} 43. Kf1 {[%emt 0:02:03]} Rb2 {[%emt 0:00:22]} 44. Ra7 {[%emt 0:00:52]} Bc6 {[%emt 0:00:41]} 45. Rd2 {[%emt 0:03:41]} Rb1+ {[%emt 0:00:05]} 46. Kg2 {[%emt 0:00:14]} e3+ {[%emt 0:00:09]} 0-1

[Event "SVK Amateur-ch 2020"]
[Site "Topolcany"]
[Date "2020.07.10"]
[Round "2.15"]
[White "Pniaczek Marek"]
[Black "Bebjak Tomas"]
[Result "1-0"]
[ECO "C65"]
[WhiteElo "2102"]
[BlackElo "1562"]
[Annotator "RC"]
[PlyCount "55"]
[EventDate "2020.07.10"]
[EventType "swiss"]
[EventCountry "SVK"]
[SourceTitle "playchess.com"]
[Source "ChessBase"]
[SourceQuality "1"]
[TimeControl "3600+30"]

1. e4 {[%emt 0:00:00]} e5 {[%emt 0:08:33]} 2. Nf3 {[%emt 0:00:00]} Nc6 {[%emt 0:01:26]} 3. Bb5 {[%emt 0:00:00]} Nf6 {[%emt 0:02:04]} 4. O-O {[%emt 0:01:41]} Bd6 {[%emt 0:02:43]} 5. d4 {[%emt 0:02:42]} exd4 {[%emt 0:08:42]} 6. Bxc6 {[%emt 0:00:14]} dxc6 {[%emt 0:00:25]} 7. e5 {[%emt 0:00:02]} O-O {[%emt 0:00:16]} 8. exd6 {[%emt 0:00:15]} cxd6 {[%emt 0:00:08]} 9. Qxd4 {[%emt 0:00:11]} h6 {[%emt 0:00:11]} 10. Bf4 {[%emt 0:00:23]} d5 {[%emt 0:01:15]} 11. Nc3 {[%emt 0:00:08]} Be6 {[%emt 0:00:21]} 12. Rfe1 {[%emt 0:00:30]} Nd7 {[%emt 0:02:43]} 13. Ne5 {[%emt 0:01:57]} c5 {[%emt 0:00:56]} 14. Qd2 {[%emt 0:00:24]} Nf6 {[%emt 0:01:23]} 15. Rad1 {[%emt 0:00:36]} a6 {[%emt 0:00:51]} 16. f3 {[%emt 0:06:03]} b5 {[%emt 0:00:23]} 17. b3 {[%emt 0:00:58]} Qb6 {[%emt 0:04:53]} 18. Ne2 {[%emt 0:01:38]} Rad8 {[%emt 0:00:36]} 19. c3 {[%emt 0:01:01]} c4+ {[%emt 0:02:06]} 20. Qd4 {[%emt 0:00:48]} Qb7 {[%emt 0:01:16]} 21. Bg3 {[%emt 0:00:35]} cxb3 {[%emt 0:01:12]} 22. axb3 {[%emt 0:00:29]} Rc8 {[%emt 0:04:59]} 23. Bf4 {[%emt 0:00:57]} Bf5 {[%emt 0:03:48]} 24. Nd3 {[%emt 0:01:22]} a5 {[%emt 0:02:44]} 25. Nc5 {[%emt 0:00:54]} Qa8 {[%emt 0:00:30]} 26. Ng3 {[%emt 0:00:30]} Ne4 {[%emt 0:00:30]} 27. Ngxe4 {[%emt 0:00:00]} dxe4 {[%emt 0:00:00]} 28. fxe4 {[%emt 0:00:05]} 1-0

[Event "SVK Amateur-ch 2020"]
[Site "Topolcany"]
[Date "2020.07.10"]
[Round "2.16"]
[White "Kaniansky Miroslav"]
[Black "Dubnicka, Ferdinand"]
[Result "1-0"]
[ECO "D38"]
[WhiteElo "2100"]
[BlackElo "1557"]
[Annotator "RC"]
[PlyCount "61"]
[EventDate "2020.07.10"]
[EventType "swiss"]
[EventCountry "SVK"]
[SourceTitle "playchess.com"]
[Source "ChessBase"]
[SourceQuality "1"]
[TimeControl "3600+30"]

1. d4 {[%emt 0:00:00]} Nf6 {[%emt 0:00:00]} 2. Nf3 {[%emt 0:00:00]} d5 {[%emt 0:00:00]} 3. c4 {[%emt 0:00:04]} e6 {[%emt 0:00:45]} 4. Nc3 {[%emt 0:00:06]} Bb4 {[%emt 0:00:14]} 5. Bg5 {[%emt 0:00:06]} O-O {[%emt 0:00:33]} 6. e3 {[%emt 0:01:24]} a6 {[%emt 0:01:22]} 7. Qb3 {[%emt 0:01:22]} Ba5 {[%emt 0:06:41]} 8. Bd3 {[%emt 0:04:03]} c6 {[%emt 0:01:01]} 9. O-O {[%emt 0:00:09]} Nbd7 {[%emt 0:00:06]} 10. e4 {[%emt 0:05:17]} Qb6 {[%emt 0:00:48]} 11. e5 {[%emt 0:04:10]} Qxb3 {[%emt 0:01:15]} 12. axb3 {[%emt 0:00:02]} Bxc3 {[%emt 0:00:12]} 13. bxc3 {[%emt 0:01:29]} Ne4 {[%emt 0:00:57]} 14. Bxe4 {[%emt 0:00:10]} dxe4 {[%emt 0:00:27]} 15. Nd2 {[%emt 0:00:30]} f5 {[%emt 0:00:30]} 16. exf6 {[%emt 0:00:09]} gxf6 {[%emt 0:00:14]} 17. Bh6 {[%emt 0:00:09]} f5 {[%emt 0:00:09]} 18. Bxf8 {[%emt 0:00:06]} Kxf8 {[%emt 0:00:19]} 19. Rae1 {[%emt 0:01:07]} Nf6 {[%emt 0:00:10]} 20. f3 {[%emt 0:00:12]} exf3 {[%emt 0:00:35]} 21. Rxf3 {[%emt 0:02:02]} h5 {[%emt 0:00:54]} 22. c5 {[%emt 0:01:19]} Kf7 {[%emt 0:00:47]} 23. Nc4 {[%emt 0:00:28]} Ne8 {[%emt 0:02:50]} 24. Ne5+ {[%emt 0:03:33]} Kg7 {[%emt 0:02:27]} 25. Rg3+ {[%emt 0:01:02]} Kh7 {[%emt 0:00:09]} 26. Rg5 {[%emt 0:03:16]} Ng7 {[%emt 0:00:20]} 27. Re3 {[%emt 0:00:18]} b5 {[%emt 0:00:33]} 28. cxb6 {[%emt 0:01:06]} Bb7 {[%emt 0:00:09]} 29. Reg3 {[%emt 0:00:38]} Rg8 {[%emt 0:00:30]} 30. Nd7 {[%emt 0:00:17]} h4 {[%emt 0:00:42]} 31. Nf6+ {[%emt 0:00:09]} 1-0

[Event "SVK Amateur-ch 2020"]
[Site "Topolcany"]
[Date "2020.07.10"]
[Round "2.16"]
[White "Meszarosova, Eva"]
[Black "Kalisky, Vladimir"]
[Result "0-1"]
[ECO "B33"]
[WhiteElo "1976"]
[BlackElo "2136"]
[Annotator "ChessBase"]
[PlyCount "86"]
[EventDate "2020.07.10"]
[EventType "swiss"]
[EventCountry "SVK"]
[SourceTitle "playchess.com"]
[Source "ChessBase"]
[SourceQuality "1"]
[TimeControl "3600+30"]

1. e4 {[%emt 0:00:00]} c5 {[%emt 0:00:00]} 2. Nf3 {[%emt 0:00:00]} Nc6 {[%emt 0:00:00]} 3. d4 {[%emt 0:00:00]} cxd4 {[%emt 0:00:00]} 4. Nxd4 {[%emt 0:00:09]} Nf6 {[%emt 0:00:01]} 5. Nc3 {[%emt 0:00:13]} g6 {[%emt 0:00:21]} 6. Nxc6 {[%emt 0:00:31]} bxc6 {[%emt 0:00:19]} 7. e5 {[%emt 0:00:12]} Ng8 {[%emt 0:01:24]} 8. Bc4 {[%emt 0:00:53]} Bg7 {[%emt 0:01:42]} 9. Bf4 {[%emt 0:05:05]} f6 {[%emt 0:05:45]} 10. Qf3 {[%emt 0:06:48]} Qa5 {[%emt 0:04:40]} 11. O-O-O {[%emt 0:03:44]} fxe5 {[%emt 0:02:30]} 12. Bd2 {[%emt 0:10:30]} Nf6 {[%emt 0:03:15]} 13. Rhe1 {[%emt 0:08:01]} Qc7 {[%emt 0:04:51]} 14. Bg5 {[%emt 0:03:13]} Rb8 {[%emt 0:09:13]} 15. Ne4 {[%emt 0:07:36]} Rf8 {[%emt 0:00:56]} 16. Nxf6+ {[%emt 0:01:18]} Bxf6 {[%emt 0:02:38]} 17. Bxf6 {[%emt 0:00:06]} exf6 {[%emt 0:01:26]} 18. Bb3 {[%emt 0:01:30]} d5 {[%emt 0:02:21]} 19. Qc3 {[%emt 0:03:52]} Rb7 {[%emt 0:06:00]} 20. h4 {[%emt 0:03:19]} Bd7 {[%emt 0:01:59]} 21. h5 {[%emt 0:01:36]} Kd8 {[%emt 0:01:09]} 22. hxg6 {[%emt 0:00:21]} hxg6 {[%emt 0:00:02]} 23. Rh1 {[%emt 0:00:31]} Qb6 {[%emt 0:03:23]} 24. f3 {[%emt 0:04:47]} Qb4 {[%emt 0:06:26]} 25. Qd3 {[%emt 0:01:19]} Bf5 {[%emt 0:02:02]} 26. Qa6 {[%emt 0:00:10]} Qb6 {[%emt 0:00:33]} 27. Qa3 {[%emt 0:00:41]} Qb4 {[%emt 0:03:34]} 28. Qa6 {[%emt 0:00:15]} Kc7 {[%emt 0:03:18]} 29. Rh7+ {[%emt 0:01:50]} Kb8 {[%emt 0:00:02]} 30. Rxb7+ {[%emt 0:00:47]} Qxb7 {[%emt 0:00:02]} 31. Qa3 {[%emt 0:00:15]} Rd8 {[%emt 0:00:02]} 32. Qc5 {[%emt 0:00:26]} Qd7 {[%emt 0:02:17]} 33. g4 {[%emt 0:00:48]} Be6 {[%emt 0:00:06]} 34. Ba4 {[%emt 0:00:21]} Qd6 {[%emt 0:00:44]} 35. Qa5 {[%emt 0:01:00]} d4 {[%emt 0:00:21]} 36. Rd3 {[%emt 0:01:36]} c5 {[%emt 0:00:41]} 37. Ra3 {[%emt 0:00:40]} Qb6 {[%emt 0:00:35]} 38. Qe1 {[%emt 0:02:31]} Bd5 {[%emt 0:00:17]} 39. Qh4 {[%emt 0:01:00]} c4 {[%emt 0:00:23]} 40. Qg3 {[%emt 0:00:47]} g5 {[%emt 0:00:10]} 41. Qf2 {[%emt 0:00:20]} Rh8 {[%emt 0:01:24]} 42. Qg2 {[%emt 0:00:51]} Qb4 {[%emt 0:00:24]} 43. Bd7 {[%emt 0:00:23]} Qe1# {[%emt 0:00:09]} 0-1

[Event "SVK Amateur-ch 2020"]
[Site "Topolcany"]
[Date "2020.07.10"]
[Round "2.17"]
[White "Wisniewski, Michal"]
[Black "Juan Mas, Santiago"]
[Result "1-0"]
[ECO "A06"]
[WhiteElo "2127"]
[BlackElo "1983"]
[Annotator "ChessBase"]
[PlyCount "81"]
[EventDate "2020.07.10"]
[EventType "swiss"]
[EventCountry "SVK"]
[SourceTitle "playchess.com"]
[Source "ChessBase"]
[SourceQuality "1"]
[TimeControl "3600+30"]

1. Nf3 {[%emt 0:00:00]} d5 {[%emt 0:00:07]} 2. c4 {[%emt 0:00:00]} c6 {[%emt 0:01:16]} 3. g3 {[%emt 0:00:00]} Nf6 {[%emt 0:01:50]} 4. Bg2 {[%emt 0:00:03]} Bf5 {[%emt 0:02:20]} 5. cxd5 {[%emt 0:00:07]} cxd5 {[%emt 0:00:07]} 6. Qb3 {[%emt 0:00:03]} Qb6 {[%emt 0:01:41]} 7. Qxb6 {[%emt 0:00:09]} axb6 {[%emt 0:00:05]} 8. Nc3 {[%emt 0:00:04]} Nc6 {[%emt 0:01:20]} 9. O-O {[%emt 0:00:18]} e6 {[%emt 0:03:23]} 10. d3 {[%emt 0:00:19]} Be7 {[%emt 0:04:04]} 11. Bf4 {[%emt 0:00:45]} O-O {[%emt 0:03:33]} 12. a3 {[%emt 0:05:36]} Nd7 {[%emt 0:02:26]} 13. e4 {[%emt 0:03:52]} dxe4 {[%emt 0:00:58]} 14. dxe4 {[%emt 0:00:04]} Bg4 {[%emt 0:00:45]} 15. Rad1 {[%emt 0:01:35]} Nc5 {[%emt 0:07:43]} 16. Bd6 {[%emt 0:04:57]} e5 {[%emt 0:25:54]} 17. Bxe7 {[%emt 0:13:56]} Nxe7 {[%emt 0:00:03]} 18. Rd6 {[%emt 0:00:08]} Bxf3 {[%emt 0:01:00]} 19. Bxf3 {[%emt 0:00:39]} Nc6 {[%emt 0:01:21]} 20. Nd5 {[%emt 0:00:31]} Rfd8 {[%emt 0:02:43]} 21. Rxd8+ {[%emt 0:00:27]} Rxd8 {[%emt 0:00:03]} 22. b4 {[%emt 0:03:47]} Ne6 {[%emt 0:01:16]} 23. Bg4 {[%emt 0:07:02]} Ra8 {[%emt 0:01:25]} 24. Bxe6 {[%emt 0:01:15]} fxe6 {[%emt 0:00:02]} 25. Nxb6 {[%emt 0:00:06]} Rxa3 {[%emt 0:00:34]} 26. b5 {[%emt 0:00:08]} Nd4 {[%emt 0:01:05]} 27. Nc4 {[%emt 0:00:14]} Nf3+ {[%emt 0:01:23]} 28. Kg2 {[%emt 0:00:12]} Rc3 {[%emt 0:00:33]} 29. Rd1 {[%emt 0:04:22]} Nh4+ {[%emt 0:01:15]} 30. gxh4 {[%emt 0:00:07]} Rxc4 {[%emt 0:00:11]} 31. Rd8+ {[%emt 0:00:03]} Kf7 {[%emt 0:00:14]} 32. Rd7+ {[%emt 0:00:03]} Kf6 {[%emt 0:01:24]} 33. f3 {[%emt 0:00:03]} h5 {[%emt 0:02:30]} 34. Rxb7 {[%emt 0:00:05]} Rc2+ {[%emt 0:00:12]} 35. Kg3 {[%emt 0:04:25]} Rb2 {[%emt 0:00:07]} 36. b6 {[%emt 0:00:13]} g5 {[%emt 0:02:01]} 37. hxg5+ {[%emt 0:00:32]} Kxg5 {[%emt 0:00:03]} 38. Rb8 {[%emt 0:00:26]} Kg6 {[%emt 0:00:32]} 39. b7 {[%emt 0:00:11]} Kg7 {[%emt 0:00:36]} 40. h3 {[%emt 0:00:05]} Kf7 {[%emt 0:00:51]} 41. Rh8 {[%emt 0:00:09]} 1-0

[Event "SVK Amateur-ch 2020"]
[Site "Topolcany"]
[Date "2020.07.10"]
[Round "2.17"]
[White "Sabela, Pavol"]
[Black "Lecky, Juraj"]
[Result "0-1"]
[ECO "A45"]
[WhiteElo "1582"]
[BlackElo "2083"]
[Annotator "ChessBase"]
[PlyCount "54"]
[EventDate "2020.07.10"]
[EventType "swiss"]
[EventCountry "SVK"]
[SourceTitle "playchess.com"]
[Source "ChessBase"]
[SourceQuality "1"]
[TimeControl "3600+30"]

1. d4 {[%emt 0:00:00]} Nf6 {[%emt 0:00:00]} 2. Nd2 {[%emt 0:00:00]} c5 {[%emt 0:00:00]} 3. c3 {[%emt 0:00:25]} d6 {[%emt 0:01:05]} 4. Ngf3 {[%emt 0:00:28]} g6 {[%emt 0:00:20]} 5. e3 {[%emt 0:00:31]} Bg7 {[%emt 0:00:07]} 6. Bc4 {[%emt 0:01:22]} O-O {[%emt 0:00:11]} 7. d5 {[%emt 0:03:07]} e6 {[%emt 0:02:06]} 8. e4 {[%emt 0:00:17]} exd5 {[%emt 0:00:25]} 9. exd5 {[%emt 0:01:05]} Re8+ {[%emt 0:00:17]} 10. Kf1 {[%emt 0:00:23]} Nbd7 {[%emt 0:01:12]} 11. b4 {[%emt 0:00:28]} cxb4 {[%emt 0:00:51]} 12. Bb2 {[%emt 0:00:48]} bxc3 {[%emt 0:03:50]} 13. Bxc3 {[%emt 0:00:27]} Nb6 {[%emt 0:00:27]} 14. Bxf6 {[%emt 0:01:38]} Qxf6 {[%emt 0:00:04]} 15. Rc1 {[%emt 0:00:28]} Bd7 {[%emt 0:02:09]} 16. h4 {[%emt 0:00:59]} Nxc4 {[%emt 0:03:06]} 17. Nxc4 {[%emt 0:00:23]} Bb5 {[%emt 0:00:52]} 18. g3 {[%emt 0:00:27]} Bh6 {[%emt 0:01:49]} 19. Ng5 {[%emt 0:00:47]} Rac8 {[%emt 0:00:51]} 20. Qb3 {[%emt 0:02:02]} Bxg5 {[%emt 0:00:34]} 21. hxg5 {[%emt 0:00:19]} Qxg5 {[%emt 0:00:12]} 22. Kg2 {[%emt 0:00:09]} Qxd5+ {[%emt 0:00:07]} 23. Kh2 {[%emt 0:06:34]} Bxc4 {[%emt 0:00:15]} 24. Qb2 {[%emt 0:01:27]} Qf5 {[%emt 0:03:55]} 25. Rhe1 {[%emt 0:02:33]} Qh5+ {[%emt 0:01:08]} 26. Kg1 {[%emt 0:04:45]} Bd5 {[%emt 0:00:09]} 27. Rxe8+ {[%emt 0:00:30]} Rxe8 {[%emt 0:00:06]} 0-1

[Event "SVK Amateur-ch 2020"]
[Site "Topolcany"]
[Date "2020.07.10"]
[Round "2.18"]
[White "Redzisz, Michal"]
[Black "Skreno, Vladimir"]
[Result "1/2-1/2"]
[ECO "D70"]
[WhiteElo "1972"]
[BlackElo "2119"]
[Annotator "ChessBase"]
[PlyCount "50"]
[EventDate "2020.07.10"]
[EventType "swiss"]
[EventCountry "SVK"]
[SourceTitle "playchess.com"]
[Source "ChessBase"]
[SourceQuality "1"]
[TimeControl "3600+30"]

1. d4 {[%emt 0:00:00]} Nf6 {[%emt 0:00:00]} 2. c4 {[%emt 0:00:00]} g6 {[%emt 0:00:34]} 3. Nf3 {[%emt 0:00:00]} Bg7 {[%emt 0:00:24]} 4. g3 {[%emt 0:00:00]} d5 {[%emt 0:00:52]} 5. cxd5 {[%emt 0:00:00]} Qxd5 {[%emt 0:01:59]} 6. Bg2 {[%emt 0:00:27]} c6 {[%emt 0:01:28]} 7. O-O {[%emt 0:00:30]} Qh5 {[%emt 0:02:09]} 8. Nc3 {[%emt 0:00:44]} O-O {[%emt 0:01:25]} 9. Qb3 {[%emt 0:04:21]} Nbd7 {[%emt 0:04:57]} 10. a4 {[%emt 0:01:14]} e5 {[%emt 0:04:47]} 11. dxe5 {[%emt 0:01:04]} Nxe5 {[%emt 0:00:16]} 12. Nxe5 {[%emt 0:00:20]} Qxe5 {[%emt 0:00:03]} 13. Bf4 {[%emt 0:00:04]} Qe6 {[%emt 0:00:40]} 14. Qa3 {[%emt 0:04:23]} Re8 {[%emt 0:05:29]} 15. Rfd1 {[%emt 0:00:55]} Nh5 {[%emt 0:02:23]} 16. Bd6 {[%emt 0:03:00]} Nf6 {[%emt 0:07:06]} 17. a5 {[%emt 0:06:38]} Bd7 {[%emt 0:05:18]} 18. Qb4 {[%emt 0:06:18]} Nd5 {[%emt 0:04:02]} 19. Nxd5 {[%emt 0:05:20]} cxd5 {[%emt 0:00:02]} 20. Bxd5 {[%emt 0:03:56]} Qxe2 {[%emt 0:00:07]} 21. Bxb7 {[%emt 0:07:16]} Qxb2 {[%emt 0:09:24]} 22. Qxb2 {[%emt 0:03:57]} Bxb2 {[%emt 0:00:06]} 23. Rab1 {[%emt 0:01:36]} Ba4 {[%emt 0:01:24]} 24. Bxa8 {[%emt 0:07:56]} Bxd1 {[%emt 0:02:21]} 25. Rxb2 {[%emt 0:00:21]} Rxa8 {[%emt 0:00:07]} 1/2-1/2

[Event "SVK Amateur-ch 2020"]
[Site "Topolcany"]
[Date "2020.07.10"]
[Round "2.19"]
[White "Bochnicka, Vladimir"]
[Black "Nikel, Rastislav"]
[Result "1/2-1/2"]
[ECO "C54"]
[WhiteElo "2092"]
[BlackElo "1982"]
[Annotator "ChessBase"]
[PlyCount "147"]
[EventDate "2020.07.10"]
[EventType "swiss"]
[EventCountry "SVK"]
[SourceTitle "playchess.com"]
[Source "ChessBase"]
[SourceQuality "1"]
[TimeControl "3600+30"]

1. e4 {[%emt 0:00:00]} e5 {[%emt 0:00:00]} 2. Nf3 {[%emt 0:00:00]} Nc6 {[%emt 0:00:00]} 3. Bc4 {[%emt 0:00:00]} Bc5 {[%emt 0:00:00]} 4. c3 {[%emt 0:00:00]} Nf6 {[%emt 0:00:06]} 5. d3 {[%emt 0:00:00]} d6 {[%emt 0:01:13]} 6. Nbd2 {[%emt 0:00:25]} O-O {[%emt 0:01:20]} 7. O-O {[%emt 0:00:26]} d5 {[%emt 0:00:06]} 8. exd5 {[%emt 0:00:12]} Nxd5 {[%emt 0:00:08]} 9. Re1 {[%emt 0:02:51]} Nf4 {[%emt 0:00:42]} 10. Ne4 {[%emt 0:01:33]} Bd6 {[%emt 0:01:07]} 11. Bxf4 {[%emt 0:09:13]} exf4 {[%emt 0:00:49]} 12. d4 {[%emt 0:04:33]} Bg4 {[%emt 0:04:53]} 13. Bb3 {[%emt 0:04:46]} h6 {[%emt 0:06:06]} 14. Bc2 {[%emt 0:01:30]} f5 {[%emt 0:00:35]} 15. Nxd6 {[%emt 0:01:37]} cxd6 {[%emt 0:07:50]} 16. h3 {[%emt 0:01:12]} Bh5 {[%emt 0:01:23]} 17. Qd3 {[%emt 0:01:04]} Qf6 {[%emt 0:05:26]} 18. Re2 {[%emt 0:10:39]} Rae8 {[%emt 0:07:34]} 19. Rxe8 {[%emt 0:05:24]} Bxe8 {[%emt 0:00:10]} 20. Re1 {[%emt 0:01:21]} Bd7 {[%emt 0:00:21]} 21. Qc4+ {[%emt 0:03:11]} Kh8 {[%emt 0:01:48]} 22. d5 {[%emt 0:04:48]} Ne5 {[%emt 0:02:01]} 23. Qxf4 {[%emt 0:00:56]} g5 {[%emt 0:01:22]} 24. Qe3 {[%emt 0:02:01]} Re8 {[%emt 0:00:51]} 25. Nxe5 {[%emt 0:01:09]} Rxe5 {[%emt 0:05:17]} 26. Qd2 {[%emt 0:00:06]} b6 {[%emt 0:03:36]} 27. f3 {[%emt 0:02:34]} Kg7 {[%emt 0:00:26]} 28. Kf2 {[%emt 0:00:49]} Bb5 {[%emt 0:05:12]} 29. g3 {[%emt 0:05:52]} Bc4 {[%emt 0:00:33]} 30. Rxe5 {[%emt 0:04:51]} Qxe5 {[%emt 0:00:11]} 31. Bb3 {[%emt 0:00:18]} Ba6 {[%emt 0:04:59]} 32. Qe3 {[%emt 0:00:23]} Kf6 {[%emt 0:01:12]} 33. f4 {[%emt 0:01:56]} gxf4 {[%emt 0:02:40]} 34. gxf4 {[%emt 0:00:05]} Qe4 {[%emt 0:00:29]} 35. Qxe4 {[%emt 0:00:37]} fxe4 {[%emt 0:00:36]} 36. Ke3 {[%emt 0:00:07]} Bd3 {[%emt 0:00:26]} 37. a3 {[%emt 0:00:45]} Kf5 {[%emt 0:00:11]} 38. Bd1 {[%emt 0:00:34]} Kg6 {[%emt 0:01:28]} 39. Bg4 {[%emt 0:00:33]} h5 {[%emt 0:00:12]} 40. Bd7 {[%emt 0:00:33]} h4 {[%emt 0:00:51]} 41. Kd4 {[%emt 0:00:43]} Kf6 {[%emt 0:00:14]} 42. b4 {[%emt 0:00:45]} Bc2 {[%emt 0:01:36]} 43. c4 {[%emt 0:00:21]} Bb1 {[%emt 0:00:40]} 44. a4 {[%emt 0:00:32]} Bc2 {[%emt 0:00:08]} 45. Ke3 {[%emt 0:00:36]} Bd3 {[%emt 0:00:52]} 46. Kd4 {[%emt 0:00:30]} Bc2 {[%emt 0:00:24]} 47. a5 {[%emt 0:00:14]} Bd3 {[%emt 0:00:40]} 48. axb6 {[%emt 0:00:24]} axb6 {[%emt 0:00:07]} 49. Bg4 {[%emt 0:00:33]} Bb1 {[%emt 0:02:08]} 50. c5 {[%emt 0:00:12]} dxc5+ {[%emt 0:00:10]} 51. bxc5 {[%emt 0:00:05]} bxc5+ {[%emt 0:00:36]} 52. Kxc5 {[%emt 0:00:03]} Bd3 {[%emt 0:01:03]} 53. d6 {[%emt 0:01:52]} e3 {[%emt 0:00:14]} 54. Kc6 {[%emt 0:00:14]} Bf5 {[%emt 0:01:01]} 55. Bxf5 {[%emt 0:00:43]} Kxf5 {[%emt 0:00:06]} 56. d7 {[%emt 0:00:09]} e2 {[%emt 0:00:04]} 57. d8=Q {[%emt 0:00:07]} e1=Q {[%emt 0:00:15]} 58. Qg5+ {[%emt 0:01:01]} Ke6 {[%emt 0:00:09]} 59. f5+ {[%emt 0:00:39]} Kf7 {[%emt 0:00:25]} 60. Qg6+ {[%emt 0:00:05]} Kf8 {[%emt 0:00:08]} 61. Qf6+ {[%emt 0:00:46]} Ke8 {[%emt 0:00:21]} 62. Qh8+ {[%emt 0:00:44]} Kf7 {[%emt 0:00:21]} 63. Qh7+ {[%emt 0:00:18]} Kf8 {[%emt 0:01:25]} 64. Qh6+ {[%emt 0:00:16]} Kf7 {[%emt 0:00:23]} 65. Qg6+ {[%emt 0:00:07]} Kf8 {[%emt 0:00:08]} 66. f6 {[%emt 0:01:30]} Qe6+ {[%emt 0:01:08]} 67. Kc5 {[%emt 0:00:15]} Qe5+ {[%emt 0:00:08]} 68. Kc4 {[%emt 0:00:12]} Qf4+ {[%emt 0:01:19]} 69. Kd5 {[%emt 0:00:57]} Qg3 {[%emt 0:01:14]} 70. Qe4 {[%emt 0:00:34]} Qb3+ {[%emt 0:00:20]} 71. Ke5 {[%emt 0:00:24]} Qg3+ {[%emt 0:00:51]} 72. Qf4 {[%emt 0:00:30]} Qc3+ {[%emt 0:00:34]} 73. Ke4 {[%emt 0:00:18]} Kf7 {[%emt 0:00:21]} 74. Qf5 {[%emt 0:00:54]} 1/2-1/2